bitfinex/quotes_BTCUSD_20240817
["timestamp","ask_amount","ask_price","bid_price","bid_amount"]
[1723927357493,0.001825,59481.0,59480.0,0.207992]
[1723927358260,0.001825,59481.0,59480.0,0.208992]
[1723927365137,0.001825,59481.0,59480.0,0.461177]
[1723927368719,0.001825,59481.0,59480.0,0.713362]
[1723927369042,0.001825,59481.0,59480.0,0.775862]
[1723927376444,0.001825,59481.0,59480.0,0.770862]
[1723927380340,0.001825,59481.0,59480.0,0.708362]
[1723927381117,0.524896,59481.0,59480.0,0.001]
[1723927381722,0.777077,59481.0,59480.0,0.001]
[1723927382156,0.378277,59480.0,59479.0,0.0009075]
[1723927382357,0.523077,59480.0,59479.0,0.0009075]
[1723927383531,0.526077,59480.0,59479.0,0.0009075]
[1723927383953,0.528077,59480.0,59479.0,0.0009075]
[1723927384717,0.780262,59480.0,59479.0,0.0009075]
[1723927385578,0.528077,59480.0,59479.0,0.0009075]
[1723927398215,0.528902,59480.0,59479.0,0.0009075]
[1723927405749,0.276717,59480.0,59479.0,0.0009075]
[1723927406985,0.528902,59480.0,59479.0,0.0009075]
[1723927408252,0.27558868,59480.0,59479.0,0.0009075]
[1723927412844,0.52777368,59480.0,59479.0,0.0009075]
[1723927419620,0.27558868,59480.0,59479.0,0.0009075]
[1723927440990,0.52777368,59480.0,59479.0,0.0009075]
[1723927443168,1.03214368,59480.0,59479.0,0.0009075]
[1723927443564,1.13281732,59480.0,59479.0,0.0009075]
[1723927443770,1.13280703,59480.0,59479.0,0.0009075]
[1723927443992,1.03214368,59480.0,59479.0,0.0009075]
[1723927445102,1.02714368,59480.0,59479.0,0.0009075]
[1723927445351,1.03314368,59480.0,59479.0,0.0009075]
[1723927445539,1.16292317,59480.0,59479.0,0.0009075]
[1723927445906,1.03714368,59480.0,59479.0,0.0009075]
[1723927446280,1.13772938,59480.0,59479.0,0.0009075]
[1723927449228,1.03714368,59480.0,59479.0,0.0009075]
[1723927451252,1.11256678,59480.0,59479.0,0.0009075]
[1723927454252,1.03714368,59480.0,59479.0,0.0009075]
[1723927455088,1.11255436,59480.0,59479.0,0.0009075]
[1723927455289,1.03714368,59480.0,59479.0,0.0009075]
[1723927460518,1.03314368,59480.0,59479.0,0.0009075]
[1723927460763,1.04114368,59480.0,59479.0,0.0009075]
[1723927460966,1.03514368,59480.0,59479.0,0.0009075]
[1723927461176,1.13568642,59480.0,59479.0,0.0009075]
[1723927461373,1.11054179,59480.0,59479.0,0.0009075]
[1723927462023,1.12054179,59480.0,59479.0,0.0009075]
[1723927464050,1.12053659,59480.0,59479.0,0.0009075]
[1723927465799,1.13046563,59480.0,59479.0,0.0009075]
[1723927468062,1.13046203,59480.0,59479.0,0.0009075]
[1723927468576,1.12053299,59480.0,59479.0,0.0009075]
[1723927468806,1.04514368,59480.0,59479.0,0.0009075]
[1723927468975,1.12053371,59480.0,59479.0,0.0009075]
[1723927469208,1.04514368,59480.0,59479.0,0.0009075]
[1723927470361,1.12053371,59480.0,59479.0,0.0009075]
[1723927478058,1.12052098,59480.0,59479.0,0.0009075]
[1723927479684,1.14564675,59480.0,59479.0,0.0009075]
[1723927479884,1.04514368,59480.0,59479.0,0.0009075]
[1723927480093,1.17077251,59480.0,59479.0,0.0009075]
[1723927481776,1.04514368,59480.0,59479.0,0.0009075]
[1723927482328,1.03514368,59480.0,59479.0,0.0009075]
[1723927482528,1.12766265,59480.0,59479.0,0.0009075]
[1723927482736,1.14066195,59480.0,59479.0,0.0009075]
[1723927482950,1.15066195,59480.0,59479.0,0.0009075]
[1723927483182,1.05014368,59480.0,59479.0,0.0009075]
[1723927484391,1.17579152,59480.0,59479.0,0.0009075]
[1723927487280,1.05014368,59480.0,59479.0,0.0009075]
[1723927493970,1.40232868,59480.0,59479.0,0.0009075]
[1723927495495,1.38932868,59480.0,59479.0,0.0009075]
[1723927495837,1.39332868,59480.0,59479.0,0.0009075]
[1723927496059,1.40532868,59480.0,59479.0,0.0009075]
[1723927496417,1.40532868,59480.0,59471.0,0.0002]
[1723927496418,1.164985,59472.0,59471.0,0.0002]
[1723927496602,1.861904,59472.0,59471.0,1e-06]
[1723927496796,1.989579,59472.0,59471.0,1e-06]
[1723927497252,2.14037257,59472.0,59471.0,1e-06]
[1723927497463,1.989579,59472.0,59471.0,1e-06]
[1723927497681,2.001579,59472.0,59471.0,1e-06]
[1723927498027,2.015579,59472.0,59471.0,1e-06]
[1723927498256,2.013579,59472.0,59471.0,1e-06]
[1723927498523,2.1803016,59472.0,59471.0,1e-06]
[1723927498832,2.029579,59472.0,59471.0,1e-06]
[1723927499463,2.017579,59472.0,59471.0,1e-06]
[1723927499912,2.031579,59472.0,59471.0,1e-06]
[1723927500332,2.026579,59472.0,59471.0,1e-06]
[1723927500532,1.08032685,59472.0,59471.0,1e-06]
[1723927500732,1.05521701,59472.0,59471.0,1e-06]
[1723927500877,1.05521802,59472.0,59471.0,1e-06]
[1723927501304,1.01321802,59472.0,59471.0,1e-06]
[1723927501511,0.926766,59472.0,59471.0,1e-06]
[1723927501713,1.02721802,59472.0,59471.0,1e-06]
[1723927501907,1.01321802,59472.0,59471.0,1e-06]
[1723927502332,0.923766,59472.0,59471.0,1e-06]
[1723927502853,0.937766,59472.0,59471.0,1e-06]
[1723927503153,1.02421802,59472.0,59471.0,1e-06]
[1723927503353,0.923766,59472.0,59471.0,1e-06]
[1723927503531,1.03821802,59472.0,59471.0,1e-06]
[1723927503736,1.03821802,59472.0,59471.0,0.0009085]
[1723927503931,0.937766,59472.0,59471.0,0.0009085]
[1723927504147,0.912766,59472.0,59471.0,0.0009085]
[1723927504322,0.924766,59472.0,59471.0,0.0009085]
[1723927504526,0.938766,59472.0,59471.0,0.0009085]
[1723927504778,1.032366,59472.0,59471.0,0.0009085]
[1723927506399,1.1076485,59472.0,59471.0,0.0009085]
[1723927508676,1.1076485,59472.0,59471.0,0.1420085]
[1723927509076,1.10764398,59472.0,59471.0,0.1420085]
[1723927510082,1.01404398,59472.0,59471.0,0.1420085]
[1723927510525,0.056,59472.0,59471.0,0.1420085]
[1723927511736,0.156109,59472.0,59471.0,0.1420085]
[1723927512143,0.156109,59472.0,59471.0,0.6139425]
[1723927512144,0.046,59472.0,59471.0,0.6139425]
[1723927513172,0.039,59472.0,59471.0,0.6139425]
[1723927513371,0.03,59472.0,59471.0,0.6139425]
[1723927513597,0.031,59472.0,59471.0,0.6149425]
[1723927513948,0.030825,59480.0,59472.0,0.1449]
[1723927514162,0.030825,59480.0,59477.0,0.0642]
[1723927514364,0.156918,59480.0,59477.0,0.0642]
[1723927515432,0.156918,59480.0,59479.0,0.345789]
[1723927515433,0.000825,59480.0,59479.0,0.345789]
[1723927515633,0.000825,59480.0,59479.0,0.868972]
[1723927515832,0.001825,59480.0,59479.0,0.868972]
[1723927516454,0.000825,59480.0,59479.0,0.868972]
[1723927516855,0.002825,59480.0,59479.0,0.777372]
[1723927517120,0.002825,59480.0,59479.0,0.870972]
[1723927517274,0.000825,59480.0,59479.0,0.870972]
[1723927517577,0.000825,59480.0,59479.0,0.525183]
[1723927517778,0.000825,59480.0,59479.0,0.777372]
[1723927519326,0.000825,59480.0,59479.0,1.123161]
[1723927520461,0.000825,59480.0,59479.0,1.29471554]
[1723927520633,0.000825,59480.0,59479.0,1.29571554]
[1723927520836,0.000825,59480.0,59479.0,1.31699175]
[1723927521062,0.000825,59480.0,59479.0,1.41899175]
[1723927521236,0.000825,59480.0,59479.0,1.67318075]
[1723927522002,0.000825,59480.0,59479.0,1.66918075]
[1723927522510,0.000825,59480.0,59479.0,1.67118075]
[1723927522710,0.000825,59481.0,59479.0,1.67118075]
[1723927522711,0.000825,59481.0,59480.0,1.392017]
[1723927522837,0.000825,59481.0,59480.0,1.59786275]
[1723927523044,0.000825,59481.0,59480.0,1.59986275]
[1723927523247,0.000825,59481.0,59480.0,1.59586275]
[1723927523654,0.000825,59481.0,59480.0,1.69346275]
[1723927523861,0.000825,59481.0,59480.0,1.59986275]
[1723927524264,0.001825,59481.0,59480.0,1.59586275]
[1723927524491,0.001825,59481.0,59480.0,1.59786275]
[1723927524492,0.000825,59481.0,59480.0,1.59786275]
[1723927524652,0.000825,59481.0,59480.0,1.57658654]
[1723927524855,0.001825,59481.0,59480.0,1.59786064]
[1723927525510,0.001825,59481.0,59480.0,1.59586064]
[1723927525708,0.001825,59481.0,59480.0,1.59586097]
[1723927526446,0.002825,59481.0,59480.0,1.57458654]
[1723927526601,0.000825,59481.0,59480.0,1.57458654]
[1723927526927,0.001825,59481.0,59480.0,1.57458654]
[1723927527543,0.002825,59481.0,59480.0,1.57858654]
[1723927527736,0.002825,59481.0,59480.0,1.57758654]
[1723927528817,0.001825,59481.0,59480.0,1.57358654]
[1723927529017,0.001825,59481.0,59480.0,1.57658654]
[1723927529195,0.002825,59481.0,59480.0,1.58058654]
[1723927529402,0.001825,59481.0,59480.0,1.58058654]
[1723927529724,0.001825,59481.0,59480.0,1.57658654]
[1723927530191,0.002825,59481.0,59480.0,1.58058654]
[1723927532337,0.002825,59481.0,59480.0,1.58258654]
[1723927532658,0.002825,59481.0,59480.0,1.57858654]
[1723927533915,0.002825,59481.0,59480.0,1.58058654]
[1723927534078,0.002825,59481.0,59480.0,1.58258654]
[1723927535073,0.002825,59481.0,59480.0,1.57858654]
[1723927535407,0.002825,59481.0,59480.0,1.59986128]
[1723927535751,0.002825,59481.0,59480.0,1.57858654]
[1723927536491,0.002825,59481.0,59480.0,1.59986139]
[1723927537492,0.002825,59481.0,59480.0,1.59986154]
[1723927537893,0.002825,59481.0,59480.0,1.60386154]
[1723927541756,0.002825,59481.0,59480.0,1.60386076]
[1723927542557,0.002825,59481.0,59480.0,1.59986076]
[1723927543600,0.002825,59481.0,59480.0,1.59886076]
[1723927543802,0.002825,59481.0,59480.0,0.65573622]
[1723927544774,0.002825,59481.0,59480.0,0.65173622]
[1723927544775,0.001825,59481.0,59480.0,0.65173622]
[1723927544894,0.002825,59481.0,59480.0,0.65573909]
[1723927545296,0.001825,59481.0,59480.0,0.65173909]
[1723927545791,0.002825,59481.0,59480.0,0.65573909]
[1723927545975,0.001825,59481.0,59480.0,0.65573909]
[1723927546182,0.000825,59481.0,59480.0,0.65173909]
[1723927546384,0.001825,59481.0,59480.0,0.630462]
[1723927546623,0.000825,59481.0,59480.0,0.65173911]
[1723927546816,0.000825,59481.0,59480.0,0.65173909]
[1723927546991,0.001825,59481.0,59480.0,0.65173909]
[1723927547474,0.001825,59481.0,59480.0,0.65173911]
[1723927547664,0.002825,59481.0,59480.0,0.65573911]
[1723927551012,0.002825,59481.0,59480.0,1.21997865]
[1723927551196,0.002825,59481.0,59480.0,1.22097865]
[1723927551408,0.002825,59481.0,59480.0,1.22297865]
[1723927551642,0.002825,59481.0,59480.0,1.35265059]
[1723927552835,0.002825,59481.0,59480.0,1.35355809]
[1723927553263,0.002825,59481.0,59480.0,1.36282089]
[1723927553482,0.002825,59481.0,59480.0,1.35355809]
[1723927553904,0.002825,59481.0,59480.0,1.30260904]
[1723927554087,0.002825,59481.0,59480.0,1.35355518]
[1723927555378,0.002825,59481.0,59480.0,1.36281785]
[1723927555559,0.002825,59481.0,59480.0,1.36481785]
[1723927555752,0.002825,59481.0,59480.0,1.38781785]
[1723927556171,0.002825,59481.0,59480.0,1.64000285]
[1723927556510,0.002825,59481.0,59480.0,1.71526843]
[1723927556780,0.001825,59481.0,59480.0,1.71526843]
[1723927557234,0.001825,59481.0,59480.0,2.01299916]
[1723927557235,0.002825,59481.0,59480.0,2.01299916]
[1723927557445,0.002825,59481.0,59480.0,2.07194348]
[1723927557619,0.002825,59481.0,59480.0,2.1384418]
[1723927557797,0.001825,59481.0,59480.0,2.1344418]
[1723927558125,0.002825,59481.0,59480.0,2.14443877]
[1723927558258,1e-08,59481.0,59480.0,2.01899613]
[1723927558717,1e-08,59481.0,59480.0,2.0779366]
[1723927558938,1e-08,59481.0,59480.0,2.01899613]
[1723927559364,1e-08,59481.0,59480.0,2.07793705]
[1723927559824,1e-08,59481.0,59480.0,2.01899613]
[1723927561558,1e-08,59481.0,59480.0,2.4217123]
[1723927561841,1e-08,59481.0,59480.0,2.1695273]
[1723927562046,1e-08,59481.0,59480.0,2.01899613]
[1723927562781,0.000825,59483.0,59482.0,1.288196]
[1723927563059,0.000825,59483.0,59482.0,2.4020515]
[1723927563260,0.000825,59483.0,59482.0,2.30579086]
[1723927563491,0.000825,59483.0,59482.0,2.24885263]
[1723927563617,0.000825,59483.0,59482.0,2.25085263]
[1723927564089,0.000825,59483.0,59482.0,2.24685263]
[1723927564425,0.000825,59483.0,59482.0,2.24885263]
[1723927564654,0.000825,59483.0,59482.0,2.26485263]
[1723927565066,0.000825,59483.0,59482.0,2.26485199]
[1723927566358,0.001825,59483.0,59482.0,2.27685199]
[1723927569167,0.001825,59483.0,59482.0,2.2768511]
[1723927569609,0.001825,59483.0,59482.0,2.22590855]
[1723927569878,0.001825,59483.0,59482.0,2.27685079]
[1723927570104,0.001825,59483.0,59482.0,2.13585079]
[1723927570345,0.001825,59483.0,59482.0,2.28704966]
[1723927571047,0.001825,59483.0,59482.0,2.13585079]
[1723927573174,0.001825,59483.0,59482.0,2.07564685]
[1723927573377,0.001825,59483.0,59482.0,2.1358517]
[1723927575369,0.001825,59483.0,59482.0,2.1318517]
[1723927575821,0.001825,59483.0,59482.0,1.76085539]
[1723927576025,0.001825,59483.0,59482.0,2.13383568]
[1723927576847,0.001825,59483.0,59482.0,2.13583568]
[1723927577357,0.001825,59483.0,59482.0,2.1358362]
[1723927579277,0.001825,59483.0,59482.0,2.1947763]
[1723927581197,0.001825,59483.0,59482.0,2.19477626]
[1723927581439,0.001825,59483.0,59482.0,2.13583625]
[1723927581925,0.001825,59483.0,59482.0,2.19477635]
[1723927582455,0.001825,59483.0,59482.0,2.13583625]
[1723927585402,0.001825,59483.0,59482.0,2.1822712]
[1723927585643,0.001825,59483.0,59482.0,2.13583625]
[1723927585880,0.001825,59483.0,59482.0,2.1822712]
[1723927586122,0.001825,59483.0,59482.0,2.13583625]
[1723927586358,0.001825,59483.0,59482.0,2.1822712]
[1723927588473,0.001825,59483.0,59482.0,2.18227123]
[1723927589493,0.001825,59483.0,59482.0,2.18227124]
[1723927593480,0.001825,59483.0,59482.0,2.09690443]
[1723927593683,0.001825,59483.0,59482.0,2.18227132]
[1723927594066,0.001825,59483.0,59482.0,2.18227134]
[1723927594267,0.001825,59483.0,59482.0,2.18227116]
[1723927595340,0.001825,59483.0,59482.0,2.33356765]
[1723927596920,0.001825,59483.0,59482.0,2.26706765]
[1723927597324,0.001825,59483.0,59482.0,2.03387116]
[1723927597732,0.001825,59483.0,59482.0,1.97366569]
[1723927597934,0.001825,59483.0,59482.0,2.03387117]
[1723927598480,0.001825,59483.0,59482.0,2.5560434]
[1723927602263,0.001825,59483.0,59482.0,2.55604354]
[1723927603614,0.001825,59483.0,59482.0,2.55604879]
[1723927606203,0.001825,59483.0,59482.0,2.55604885]
[1723927606751,0.001825,59483.0,59482.0,2.47068183]
[1723927606949,0.001825,59483.0,59482.0,2.55604905]
[1723927607980,0.001825,59483.0,59482.0,2.55604911]
[1723927608160,0.001825,59483.0,59482.0,2.55604914]
[1723927610408,0.001825,59483.0,59482.0,2.53477544]
[1723927610689,0.001825,59483.0,59482.0,2.55604917]
[1723927611011,0.084725,59483.0,59482.0,2.55404917]
[1723927611211,0.084725,59483.0,59482.0,2.55604917]
[1723927612719,0.084725,59483.0,59482.0,2.55605399]
[1723927614702,0.084725,59483.0,59482.0,2.55605404]
[1723927615087,0.001825,59483.0,59482.0,2.55605404]
[1723927615222,0.001825,59483.0,59482.0,2.70475404]
[1723927617592,0.001825,59483.0,59482.0,2.55605404]
[1723927619189,0.001825,59483.0,59482.0,2.55605341]
[1723927619612,0.077625,59483.0,59482.0,2.45815341]
[1723927619818,0.143625,59483.0,59482.0,2.13557072]
[1723927620024,0.143625,59483.0,59482.0,1.47443169]
[1723927620240,0.143625,59483.0,59482.0,1.37822039]
[1723927620443,0.143625,59483.0,59482.0,1.34854785]
[1723927620648,0.143625,59483.0,59482.0,1.22225469]
[1723927620851,0.143625,59483.0,59482.0,1.34854785]
[1723927621267,0.143625,59483.0,59482.0,1.43654785]
[1723927621268,0.142625,59483.0,59482.0,1.43654785]
[1723927621466,0.143625,59483.0,59482.0,1.43354785]
[1723927621677,0.144625,59483.0,59482.0,1.42224183]
[1723927622084,0.144625,59483.0,59482.0,1.42224431]
[1723927622292,0.143625,59483.0,59482.0,1.40824431]
[1723927622510,0.144625,59483.0,59482.0,1.39697899]
[1723927622923,0.144625,59483.0,59482.0,0.52454126]
[1723927623127,0.144625,59483.0,59482.0,0.42454126]
[1723927623957,0.144625,59483.0,59482.0,0.67671826]
[1723927624374,0.144625,59483.0,59482.0,0.71620147]
[1723927624375,0.143625,59483.0,59482.0,0.71620147]
[1723927624580,0.142625,59483.0,59482.0,0.70420147]
[1723927624791,0.142625,59483.0,59482.0,0.65571826]
[1723927624992,0.142625,59483.0,59482.0,0.65371826]
[1723927625193,0.142625,59483.0,59482.0,0.70917309]
[1723927625399,0.142625,59483.0,59482.0,0.70417309]
[1723927625605,0.142625,59483.0,59482.0,0.70417319]
[1723927625812,0.142625,59483.0,59482.0,0.71017319]
[1723927625813,0.143625,59483.0,59482.0,0.71017319]
[1723927626217,0.144625,59483.0,59482.0,0.71917319]
[1723927626467,0.144625,59483.0,59482.0,0.66871836]
[1723927630027,0.144625,59483.0,59482.0,0.66871851]
[1723927630426,0.144625,59483.0,59482.0,0.647442]
[1723927630603,0.144625,59483.0,59482.0,0.66871852]
[1723927630806,0.144625,59483.0,59482.0,0.395265]
[1723927637317,0.144625,59483.0,59482.0,0.647442]
[1723927637562,0.144625,59483.0,59482.0,0.395265]
[1723927641801,0.144625,59483.0,59482.0,0.143088]
[1723927642000,0.144625,59483.0,59482.0,0.395265]
[1723927652506,0.144625,59483.0,59482.0,0.41654316]
[1723927652941,0.144625,59483.0,59482.0,0.395265]
[1723927654736,0.144625,59483.0,59482.0,0.41654318]
[1723927657918,0.144625,59483.0,59482.0,0.647442]
[1723927658117,0.144625,59483.0,59482.0,0.41654316]
[1723927665234,0.144625,59483.0,59482.0,0.41654319]
[1723927666640,0.144625,59483.0,59482.0,0.395265]
[1723927666841,0.144625,59483.0,59482.0,0.41654316]
[1723927667110,0.144625,59483.0,59482.0,0.395265]
[1723927667279,0.144625,59483.0,59482.0,0.41654319]
[1723927668597,0.144625,59483.0,59482.0,0.395265]
[1723927668865,0.144625,59483.0,59482.0,0.41654319]
[1723927669680,0.002825,59483.0,59482.0,0.84027473]
[1723927669880,0.002825,59483.0,59482.0,1.41413156]
[1723927670179,0.002825,59483.0,59482.0,1.81241494]
[1723927670393,0.002825,59483.0,59482.0,1.83765486]
[1723927670740,0.002825,59483.0,59482.0,1.73669519]
[1723927671005,0.002825,59483.0,59482.0,1.7683678]
[1723927671210,0.002825,59483.0,59482.0,1.89454334]
[1723927672685,0.002825,59483.0,59482.0,1.77034844]
[1723927672890,0.002825,59483.0,59482.0,1.76634844]
[1723927673527,0.002825,59483.0,59482.0,1.83759747]
[1723927676009,0.002825,59483.0,59482.0,1.83757666]
[1723927677128,0.002825,59483.0,59482.0,1.83957666]
[1723927677602,0.002825,59483.0,59482.0,1.7406721]
[1723927678694,0.002825,59483.0,59482.0,1.71939391]
[1723927678903,0.002825,59483.0,59482.0,1.7406695]
[1723927680670,0.002825,59483.0,59482.0,1.7366695]
[1723927681520,0.002825,59483.0,59482.0,1.8123223]
[1723927681723,0.002825,59483.0,59482.0,1.88494671]
[1723927681970,0.002825,59483.0,59482.0,1.9062223]
[1723927683659,0.002825,59483.0,59482.0,1.9062107]
[1723927685537,0.002825,59483.0,59482.0,1.53319033]
[1723927685751,0.002825,59483.0,59482.0,1.51191474]
[1723927685955,0.002825,59483.0,59482.0,1.53319033]
[1723927688063,0.002825,59483.0,59482.0,1.53519033]
[1723927688265,0.002825,59483.0,59482.0,1.53317929]
[1723927688682,0.002825,59483.0,59482.0,1.38597929]
[1723927691477,0.002825,59483.0,59482.0,1.38797929]
[1723927691685,0.002825,59483.0,59482.0,1.31234913]
[1723927691890,0.002825,59483.0,59482.0,1.31034913]
[1723927694609,0.002825,59483.0,59482.0,1.3859752]
[1723927694793,0.002825,59483.0,59482.0,1.75899156]
[1723927695402,0.002825,59483.0,59482.0,1.7886628]
[1723927697643,0.002825,59483.0,59482.0,1.78866245]
[1723927698021,0.002825,59483.0,59482.0,1.78866243]
[1723927699778,0.002825,59483.0,59482.0,1.7979253]
[1723927701916,0.002825,59483.0,59482.0,1.72429842]
[1723927702124,0.002825,59483.0,59482.0,1.67335161]
[1723927702331,0.002825,59483.0,59482.0,1.7242981]
[1723927702537,0.002825,59483.0,59482.0,1.7222981]
[1723927703570,0.002825,59483.0,59482.0,1.7242981]
[1723927705055,0.002825,59483.0,59482.0,1.7262981]
[1723927705486,0.002825,59483.0,59482.0,1.82713394]
[1723927706110,0.002825,59483.0,59482.0,1.82313394]
[1723927706519,0.002825,59483.0,59482.0,1.79346275]
[1723927706721,0.002825,59483.0,59482.0,1.82316706]
[1723927707154,0.002825,59483.0,59482.0,1.82516706]
[1723927707564,0.002825,59483.0,59482.0,1.82716706]
[1723927708906,0.002825,59483.0,59482.0,1.82318295]
[1723927709124,0.002825,59483.0,59482.0,1.82518295]
[1723927709273,0.002825,59483.0,59482.0,1.82718295]
[1723927710625,0.002825,59483.0,59482.0,1.72629759]
[1723927711484,0.002825,59483.0,59482.0,1.85242963]
[1723927711689,0.002825,59483.0,59482.0,1.84842963]
[1723927712310,0.002825,59483.0,59482.0,1.85042963]
[1723927713273,0.002825,59483.0,59482.0,1.85242963]
[1723927713515,0.002825,59483.0,59482.0,1.72629707]
[1723927715497,0.002825,59483.0,59482.0,1.72629706]
[1723927716173,0.002825,59483.0,59482.0,1.72629748]
[1723927718244,0.002825,59483.0,59482.0,1.72229748]
[1723927718715,0.002825,59483.0,59482.0,1.72429748]
[1723927719639,0.002825,59483.0,59482.0,1.72229748]
[1723927720961,0.002825,59483.0,59482.0,1.72429748]
[1723927721503,0.002825,59483.0,59482.0,1.97847448]
[1723927721709,0.002825,59483.0,59482.0,1.72629748]
[1723927723696,0.002825,59483.0,59482.0,1.66608813]
[1723927723891,0.002825,59483.0,59482.0,1.72629742]
[1723927725336,0.002825,59483.0,59482.0,1.72629691]
[1723927727367,0.002825,59483.0,59482.0,1.66608762]
[1723927727565,0.002825,59483.0,59482.0,1.72629691]
[1723927727794,0.002825,59483.0,59482.0,1.71703406]
[1723927728002,0.002825,59483.0,59482.0,1.72229691]
[1723927730055,0.002825,59483.0,59482.0,1.7222969]
[1723927731650,0.002825,59483.0,59482.0,1.6283969]
[1723927732202,0.002825,59483.0,59482.0,1.7222969]
[1723927733325,0.002825,59483.0,59482.0,1.7262969]
[1723927736147,0.002825,59483.0,59482.0,1.70502162]
[1723927736354,0.002825,59483.0,59482.0,1.7262969]
[1723927740029,0.002825,59483.0,59482.0,1.66608761]
[1723927740247,0.002825,59483.0,59482.0,1.7262969]
[1723927749010,0.002825,59483.0,59482.0,2.65224843]
[1723927749118,0.002825,59483.0,59482.0,2.71119386]
[1723927749535,0.002825,59483.0,59482.0,2.3538994]
[1723927750196,0.000825,59483.0,59482.0,2.3368994]
[1723927750397,0.000825,59483.0,59482.0,2.44199196]
[1723927750602,0.002825,59483.0,59482.0,2.46699196]
[1723927751142,0.002825,59483.0,59482.0,2.46399196]
[1723927752147,0.002825,59483.0,59482.0,2.49630706]
[1723927752361,0.002825,59483.0,59482.0,2.47792607]
[1723927752571,0.002825,59483.0,59482.0,2.41898387]
[1723927755423,0.002825,59483.0,59482.0,1.89679281]
[1723927756423,0.002825,59483.0,59482.0,1.7452739]
[1723927758969,1e-08,59483.0,59482.0,2.93030474]
[1723927759128,1e-08,59483.0,59482.0,2.77533749]
[1723927759353,1e-08,59483.0,59482.0,2.81181379]
[1723927759520,1e-08,59483.0,59482.0,2.95875459]
[1723927759721,1e-08,59483.0,59482.0,3.13275055]
[1723927759945,1e-08,59483.0,59482.0,3.02751449]
[1723927760148,1e-08,59483.0,59482.0,3.13275118]
[1723927760348,1e-08,59483.0,59482.0,3.02751449]
[1723927760837,1e-08,59483.0,59482.0,3.0274944]
[1723927761051,0.0793,59492.0,59491.0,1.139621]
[1723927761266,0.11445003,59494.0,59493.0,0.383195]
[1723927761267,0.04995003,59494.0,59493.0,0.383195]
[1723927761474,0.0765,59502.0,59501.0,0.129048]
[1723927761693,0.0765,59502.0,59501.0,1.72575004]
[1723927761897,0.0605,59503.0,59502.0,0.63323]
[1723927762105,0.0605,59503.0,59502.0,1.61506964]
[1723927762304,0.0765,59504.0,59502.0,1.61506964]
[1723927762305,0.0765,59504.0,59503.0,0.63122]
[1723927762509,0.0765,59504.0,59503.0,1.70255588]
[1723927762710,0.0765,59504.0,59503.0,1.57212753]
[1723927763504,0.0765,59504.0,59503.0,1.2746734]
[1723927763731,0.0765,59504.0,59503.0,1.3016734]
[1723927764382,0.0765,59504.0,59503.0,1.27647569]
[1723927765425,0.0765,59504.0,59503.0,1.22613392]
[1723927765612,0.0765,59504.0,59503.0,1.22613074]
[1723927766070,0.0765,59504.0,59503.0,1.22613073]
[1723927766332,0.0765,59504.0,59503.0,1.22813073]
[1723927766824,0.0765,59504.0,59503.0,1.23013073]
[1723927768435,0.0765,59504.0,59503.0,1.22613073]
[1723927770396,0.0765,59504.0,59503.0,1.20486254]
[1723927770629,0.0765,59504.0,59503.0,1.22613074]
[1723927775972,0.077325,59504.0,59503.0,1.22613074]
[1723927776804,0.077325,59504.0,59503.0,1.22813074]
[1723927777722,0.077325,59504.0,59503.0,1.23013074]
[1723927777919,0.077325,59504.0,59503.0,1.22613074]
[1723927779695,0.077325,59504.0,59503.0,1.20886254]
[1723927779897,0.077325,59504.0,59503.0,1.23013074]
[1723927780682,0.077325,59504.0,59503.0,1.22613074]
[1723927781428,0.077325,59504.0,59503.0,1.22813074]
[1723927781630,0.077325,59504.0,59503.0,1.23013074]
[1723927781831,0.077325,59504.0,59503.0,1.22613074]
[1723927783914,0.077325,59504.0,59503.0,1.20486254]
[1723927784070,0.077325,59504.0,59503.0,1.22613074]
[1723927787529,0.077325,59504.0,59503.0,1.20486254]
[1723927787833,0.077325,59504.0,59503.0,1.22613081]
[1723927788478,0.077325,59504.0,59503.0,1.25579498]
[1723927790726,0.077325,59504.0,59503.0,1.26505433]
[1723927792213,0.077325,59504.0,59503.0,1.26505436]
[1723927793735,0.077325,59504.0,59503.0,1.51714236]
[1723927796260,0.077325,59504.0,59503.0,1.45695054]
[1723927796513,0.077325,59504.0,59503.0,1.51714236]
[1723927797189,0.077325,59504.0,59503.0,1.51914236]
[1723927797407,0.077325,59504.0,59503.0,1.52114236]
[1723927798745,0.077325,59504.0,59503.0,1.51714236]
[1723927799350,0.077325,59504.0,59503.0,1.5673987]
[1723927800353,0.077325,59504.0,59503.0,1.51714236]
[1723927801659,0.077325,59504.0,59503.0,1.96557039]
[1723927802462,0.077325,59504.0,59503.0,1.99075527]
[1723927803393,0.077325,59504.0,59503.0,1.89001575]
[1723927803588,0.077325,59504.0,59503.0,1.85109222]
[1723927803831,0.077325,59504.0,59503.0,1.89001574]
[1723927804030,0.077325,59504.0,59503.0,1.82982393]
[1723927804252,0.077325,59504.0,59503.0,1.89001575]
[1723927805908,0.077325,59504.0,59503.0,1.88075639]
[1723927806129,0.077325,59504.0,59503.0,1.89001596]
[1723927807366,0.077325,59504.0,59503.0,1.19028542]
[1723927807367,0.143825,59504.0,59503.0,1.19028542]
[1723927807576,0.143825,59504.0,59503.0,1.25236546]
[1723927807786,0.143825,59504.0,59503.0,1.2271166]
[1723927807992,0.143825,59504.0,59503.0,1.27761192]
[1723927808199,0.143825,59504.0,59503.0,1.25233967]
[1723927808447,0.143825,59504.0,59503.0,1.15136327]
[1723927808669,0.143825,59504.0,59503.0,1.13836327]
[1723927808904,0.143825,59504.0,59503.0,1.14536327]
[1723927809140,0.143825,59504.0,59503.0,1.24633953]
[1723927809595,0.143825,59504.0,59503.0,1.23233953]
[1723927809832,0.143825,59504.0,59503.0,1.14236327]
[1723927810056,0.143825,59504.0,59503.0,1.24332453]
[1723927810279,0.143825,59504.0,59503.0,1.21807618]
[1723927810504,0.143825,59504.0,59503.0,1.14236327]
[1723927810977,0.143825,59504.0,59503.0,1.13136327]
[1723927811244,0.143825,59504.0,59503.0,1.14136327]
[1723927811470,0.143825,59504.0,59503.0,1.21706881]
[1723927811939,0.143825,59504.0,59503.0,1.24232453]
[1723927812141,0.143825,59504.0,59503.0,1.21706817]
[1723927812562,0.143825,59504.0,59503.0,1.19579829]
[1723927812782,0.143825,59504.0,59503.0,1.21706824]